[Event "*** SCC Grand Prix: Titled Tuesday Blitz"]
[Site "Chess.com"]
[Date "2020.07.07"]
[Round "1"]
[White "HanSchut"]
[Black "timator"]
[Result "0-1"]
[WhiteElo "2302"]
[BlackElo "2628"]
[TimeControl "180+1"]
[EndTime "10:05:14 PDT"]
[Termination "timator won by resignation"]

1. e4 {[%clk 0:03:00.9]} 1... c5 {[%clk 0:02:56.5]} 2. Nf3 {[%clk 0:03:00.7]}
2... e6 {[%clk 0:02:52.7]} 3. c4 {[%clk 0:03:00.2]} 3... Nc6 {[%clk 0:02:48.7]}
4. Nc3 {[%clk 0:03:00]} 4... Nf6 {[%clk 0:02:48.2]} 5. Be2 {[%clk 0:03:00.2]}
5... e5 {[%clk 0:02:47.6]} 6. d3 {[%clk 0:02:59.9]} 6... d6 {[%clk 0:02:48.5]}
7. Nd5 {[%clk 0:03:00]} 7... Be7 {[%clk 0:02:49.4]} 8. a3 {[%clk 0:02:59.9]}
8... O-O {[%clk 0:02:49.1]} 9. b4 {[%clk 0:03:00.1]} 9... cxb4 {[%clk
0:02:49.1]} 10. axb4 {[%clk 0:03:00.3]} 10... Nxd5 {[%clk 0:02:49.4]} 11. exd5
{[%clk 0:02:57]} 11... Nxb4 {[%clk 0:02:49.8]} 12. Be3 {[%clk 0:02:43.9]} 12...
Na6 {[%clk 0:02:46.8]} 13. O-O {[%clk 0:02:35.8]} 13... Bg4 {[%clk 0:02:46.4]}
14. d4 {[%clk 0:02:34.7]} 14... Bxf3 {[%clk 0:02:42.2]} 15. Bxf3 {[%clk
0:02:32.3]} 15... Bf6 {[%clk 0:02:42.5]} 16. dxe5 {[%clk 0:01:07.6]} 16... Bxe5
{[%clk 0:02:43.4]} 17. Rb1 {[%clk 0:01:05.6]} 17... b6 {[%clk 0:02:43]} 18. Be2
{[%clk 0:01:03.1]} 18... Nc5 {[%clk 0:02:43]} 19. Qd2 {[%clk 0:00:56.8]} 19...
Re8 {[%clk 0:02:42.3]} 20. f4 {[%clk 0:00:49.4]} 20... Bf6 {[%clk 0:02:39.3]}
21. Bf3 {[%clk 0:00:32.2]} 21... Rc8 {[%clk 0:02:38]} 22. Rbc1 {[%clk
0:00:28.5]} 22... Nb3 {[%clk 0:02:33.9]} 23. Qd3 {[%clk 0:00:26.5]} 23... Nxc1
{[%clk 0:02:33.9]} 24. Rxc1 {[%clk 0:00:27.4]} 24... Qc7 {[%clk 0:02:30]} 25.
Bf2 {[%clk 0:00:13.7]} 25... g6 {[%clk 0:02:29.7]} 26. f5 {[%clk 0:00:11.8]}
26... g5 {[%clk 0:02:22.7]} 27. h4 {[%clk 0:00:10]} 27... h6 {[%clk 0:02:23.1]}
28. hxg5 {[%clk 0:00:10.1]} 28... hxg5 {[%clk 0:02:24]} 29. Qd2 {[%clk
0:00:08.8]} 29... Kg7 {[%clk 0:02:23.3]} 30. Bd4 {[%clk 0:00:08]} 30... Bxd4+
{[%clk 0:02:22.4]} 31. Qxd4+ {[%clk 0:00:08.9]} 31... f6 {[%clk 0:02:23.1]} 32.
Qg4 {[%clk 0:00:08.8]} 32... Qc5+ {[%clk 0:02:22.8]} 33. Kf1 {[%clk 0:00:08.4]}
33... Rh8 {[%clk 0:02:22.1]} 34. Re1 {[%clk 0:00:08.6]} 34... Rh1+ {[%clk
0:02:21.2]} 35. Ke2 {[%clk 0:00:08.2]} 35... Re8+ {[%clk 0:02:21.7]} 36. Kd2
{[%clk 0:00:08.6]} 36... Rhxe1 {[%clk 0:02:19.5]} 0-1

[Event "*** SCC Grand Prix: Titled Tuesday Blitz"]
[Site "Chess.com"]
[Date "2020.07.07"]
[Round "1"]
[White "vitnik2020"]
[Black "gross-aleks"]
[Result "1/2-1/2"]
[WhiteElo "2284"]
[BlackElo "2598"]
[TimeControl "180+1"]
[EndTime "10:05:16 PDT"]
[Termination "Game drawn by repetition"]

1. d4 {[%clk 0:02:58.9]} 1... Nf6 {[%clk 0:02:59.4]} 2. c4 {[%clk 0:02:56.2]}
2... e6 {[%clk 0:02:59.6]} 3. Nf3 {[%clk 0:02:55.6]} 3... b6 {[%clk 0:02:59.2]}
4. e3 {[%clk 0:02:54.8]} 4... Bb7 {[%clk 0:02:59.2]} 5. Bd3 {[%clk 0:02:54.1]}
5... c5 {[%clk 0:02:58.5]} 6. Nc3 {[%clk 0:02:52.1]} 6... Be7 {[%clk 0:02:59.4]}
7. O-O {[%clk 0:02:49.8]} 7... cxd4 {[%clk 0:02:58]} 8. exd4 {[%clk 0:02:48.9]}
8... O-O {[%clk 0:02:48.2]} 9. d5 {[%clk 0:02:48.5]} 9... exd5 {[%clk
0:02:47.5]} 10. cxd5 {[%clk 0:02:47.9]} 10... Re8 {[%clk 0:02:46.7]} 11. Bf4
{[%clk 0:02:30.7]} 11... Bb4 {[%clk 0:02:43.5]} 12. Bg5 {[%clk 0:02:16.7]} 12...
h6 {[%clk 0:02:41]} 13. Bh4 {[%clk 0:02:15.7]} 13... Bxc3 {[%clk 0:02:37.2]} 14.
bxc3 {[%clk 0:02:14.5]} 14... Bxd5 {[%clk 0:02:36.3]} 15. Nd4 {[%clk 0:01:46.9]}
15... Nc6 {[%clk 0:02:27.5]} 16. Nf5 {[%clk 0:01:41.1]} 16... Be4 {[%clk
0:01:52]} 17. Nd6 {[%clk 0:01:24.6]} 17... Bxd3 {[%clk 0:01:47.6]} 18. Nxe8
{[%clk 0:01:17.1]} 18... Bxf1 {[%clk 0:01:46]} 19. Nxf6+ {[%clk 0:01:16.1]}
19... gxf6 {[%clk 0:01:45.4]} 20. Qg4+ {[%clk 0:01:15.9]} 20... Kf8 {[%clk
0:01:38.9]} 21. Qh5 {[%clk 0:00:59.9]} 21... Kg7 {[%clk 0:01:05]} 22. Qg4+
{[%clk 0:00:59.3]} 22... Kh7 {[%clk 0:01:02.9]} 23. Qf5+ {[%clk 0:00:58.1]}
23... Kg7 {[%clk 0:01:02]} 24. Qg4+ {[%clk 0:00:57.5]} 24... Kh7 {[%clk
0:00:59.7]} 25. Qf5+ {[%clk 0:00:56.8]} 25... Kg7 {[%clk 0:00:59.6]} 26. Qg4+
{[%clk 0:00:56]} 1/2-1/2

[Event "*** SCC Grand Prix: Titled Tuesday Blitz"]
[Site "Chess.com"]
[Date "2020.07.07"]
[Round "1"]
[White "Zq1"]
[Black "yuliagok"]
[Result "1-0"]
[WhiteElo "2509"]
[BlackElo "2102"]
[TimeControl "180+1"]
[EndTime "10:05:18 PDT"]
[Termination "Zq1 won by resignation"]

1. d4 {[%clk 0:03:00.9]} 1... Nf6 {[%clk 0:02:58.3]} 2. c4 {[%clk 0:02:59.6]}
2... e6 {[%clk 0:02:57.2]} 3. Nc3 {[%clk 0:02:58.7]} 3... d5 {[%clk 0:02:56.4]}
4. Nf3 {[%clk 0:02:57.4]} 4... Nbd7 {[%clk 0:02:52.6]} 5. e3 {[%clk 0:02:55.1]}
5... c6 {[%clk 0:02:50.2]} 6. Qc2 {[%clk 0:02:54]} 6... Be7 {[%clk 0:02:49.3]}
7. b3 {[%clk 0:02:53]} 7... O-O {[%clk 0:02:48.2]} 8. Be2 {[%clk 0:02:51]} 8...
b6 {[%clk 0:02:44.2]} 9. O-O {[%clk 0:02:50]} 9... Bb7 {[%clk 0:02:42]} 10. Bb2
{[%clk 0:02:49.6]} 10... Rc8 {[%clk 0:02:28.2]} 11. Rad1 {[%clk 0:02:49.3]}
11... Qc7 {[%clk 0:02:25.1]} 12. Rfe1 {[%clk 0:02:46.1]} 12... dxc4 {[%clk
0:02:21.4]} 13. bxc4 {[%clk 0:02:37.9]} 13... c5 {[%clk 0:02:18.7]} 14. d5
{[%clk 0:02:36.8]} 14... exd5 {[%clk 0:02:16.7]} 15. cxd5 {[%clk 0:02:36.2]}
15... Qb8 {[%clk 0:02:08.6]} 16. e4 {[%clk 0:02:32.5]} 16... Ng4 {[%clk
0:01:59.1]} 17. g3 {[%clk 0:02:29.4]} 17... Nge5 {[%clk 0:01:58]} 18. Nxe5
{[%clk 0:02:24.4]} 18... Nxe5 {[%clk 0:01:56.1]} 19. f4 {[%clk 0:02:23.2]} 19...
Ng6 {[%clk 0:01:46.5]} 20. Bf3 {[%clk 0:02:17.1]} 20... f6 {[%clk 0:01:40.6]}
21. Bg4 {[%clk 0:02:13.8]} 21... Rcd8 {[%clk 0:01:39.6]} 22. Be6+ {[%clk
0:02:13.2]} 22... Kh8 {[%clk 0:01:38.4]} 23. h4 {[%clk 0:02:06.7]} 23... Rfe8
{[%clk 0:01:31.8]} 24. h5 {[%clk 0:02:03.9]} 24... Nxf4 {[%clk 0:01:24.1]} 25.
gxf4 {[%clk 0:02:02.9]} 25... Qxf4 {[%clk 0:01:23.3]} 26. Qg2 {[%clk 0:01:56.4]}
26... Bd6 {[%clk 0:01:20.3]} 27. Bc1 {[%clk 0:01:48.2]} 27... Qe5 {[%clk
0:01:17.6]} 28. Ne2 {[%clk 0:01:47.8]} 28... Qxh5 {[%clk 0:01:15.3]} 29. Nf4
{[%clk 0:01:43.8]} 29... Qh4 {[%clk 0:01:06.2]} 30. Ng6+ {[%clk 0:01:28.6]}
30... hxg6 {[%clk 0:01:04.5]} 31. Rd3 {[%clk 0:01:28.7]} 31... Rxe6 {[%clk
0:00:50.5]} 32. Rh3 {[%clk 0:01:27.7]} 32... Qxh3 {[%clk 0:00:47.2]} 33. Qxh3+
{[%clk 0:01:27.2]} 1-0

[Event "*** SCC Grand Prix: Titled Tuesday Blitz"]
[Site "Chess.com"]
[Date "2020.07.07"]
[Round "1"]
[White "Gloomy_Wanderer"]
[Black "kleopl"]
[Result "1-0"]
[WhiteElo "2749"]
[BlackElo "2401"]
[TimeControl "180+1"]
[EndTime "10:05:19 PDT"]
[Termination "Gloomy_Wanderer won by resignation"]

1. d4 {[%clk 0:03:00.1]} 1... Nf6 {[%clk 0:02:59.4]} 2. Nf3 {[%clk 0:03:00.1]}
2... g6 {[%clk 0:02:59.3]} 3. c4 {[%clk 0:03:00.5]} 3... Bg7 {[%clk 0:02:59.5]}
4. g3 {[%clk 0:03:01.1]} 4... O-O {[%clk 0:02:59.3]} 5. Bg2 {[%clk 0:03:01.6]}
5... c6 {[%clk 0:02:59.3]} 6. O-O {[%clk 0:03:01.7]} 6... d5 {[%clk 0:02:59.5]}
7. Nbd2 {[%clk 0:03:02.1]} 7... Ne4 {[%clk 0:02:58]} 8. b3 {[%clk 0:03:01.9]}
8... Nc3 {[%clk 0:02:50.8]} 9. Qe1 {[%clk 0:03:01.8]} 9... Bg4 {[%clk
0:02:46.3]} 10. Bb2 {[%clk 0:03:01.4]} 10... Ne4 {[%clk 0:02:45.8]} 11. h3
{[%clk 0:03:01.5]} 11... Nxd2 {[%clk 0:02:40]} 12. Nxd2 {[%clk 0:02:54.8]} 12...
Be6 {[%clk 0:02:38.7]} 13. Rd1 {[%clk 0:02:48.9]} 13... Na6 {[%clk 0:02:34.7]}
14. a3 {[%clk 0:02:36.4]} 14... Qd7 {[%clk 0:02:33.2]} 15. Kh2 {[%clk
0:02:35.7]} 15... Rfd8 {[%clk 0:02:32.2]} 16. e4 {[%clk 0:02:32.2]} 16... dxc4
{[%clk 0:02:20.4]} 17. Nxc4 {[%clk 0:02:31.7]} 17... b5 {[%clk 0:01:49.3]} 18.
Na5 {[%clk 0:02:19.6]} 18... Qc7 {[%clk 0:01:17.7]} 19. b4 {[%clk 0:02:17.3]}
19... c5 {[%clk 0:01:13.6]} 20. e5 {[%clk 0:02:17.2]} 20... cxb4 {[%clk
0:00:51.4]} 21. Bxa8 {[%clk 0:02:14.9]} 21... Rxa8 {[%clk 0:00:25.8]} 22. d5
{[%clk 0:02:14.7]} 22... Qxa5 {[%clk 0:00:21.4]} 23. dxe6 {[%clk 0:02:14.2]}
23... fxe6 {[%clk 0:00:22.1]} 24. Qe4 {[%clk 0:02:13.5]} 24... Rf8 {[%clk
0:00:17.5]} 25. axb4 {[%clk 0:02:11]} 25... Qxb4 {[%clk 0:00:17.4]} 26. Bd4
{[%clk 0:02:03.1]} 26... Nc5 {[%clk 0:00:15]} 27. Qc6 {[%clk 0:02:03.2]} 27...
Nb3 {[%clk 0:00:13.8]} 28. Qxe6+ {[%clk 0:02:03.1]} 28... Kh8 {[%clk 0:00:13.2]}
29. Bxa7 {[%clk 0:02:03.2]} 29... Nd2 {[%clk 0:00:11.9]} 30. Rh1 {[%clk
0:01:53.1]} 30... Rxf2+ {[%clk 0:00:10.8]} 31. Bxf2 {[%clk 0:01:52.7]} 1-0

[Event "*** SCC Grand Prix: Titled Tuesday Blitz"]
[Site "Chess.com"]
[Date "2020.07.07"]
[Round "1"]
[White "kushagramohan"]
[Black "Gerodot71"]
[Result "1-0"]
[WhiteElo "2704"]
[BlackElo "2377"]
[TimeControl "180+1"]
[EndTime "10:05:22 PDT"]
[Termination "kushagramohan won by resignation"]

1. e4 {[%clk 0:03:00.9]} 1... e5 {[%clk 0:02:59.5]} 2. Nf3 {[%clk 0:02:59.8]}
2... Nc6 {[%clk 0:02:59.8]} 3. Bb5 {[%clk 0:03:00.1]} 3... a6 {[%clk 0:02:59.5]}
4. Ba4 {[%clk 0:03:00.3]} 4... Nf6 {[%clk 0:02:58.9]} 5. O-O {[%clk 0:03:00.4]}
5... Be7 {[%clk 0:02:58.8]} 6. Re1 {[%clk 0:03:00.8]} 6... b5 {[%clk 0:02:58.5]}
7. Bb3 {[%clk 0:03:00.7]} 7... d6 {[%clk 0:02:58.2]} 8. c3 {[%clk 0:03:00.6]}
8... O-O {[%clk 0:02:57.5]} 9. d4 {[%clk 0:03:01.1]} 9... Bg4 {[%clk 0:02:54.3]}
10. Be3 {[%clk 0:03:01.6]} 10... Re8 {[%clk 0:02:32.9]} 11. Nbd2 {[%clk
0:03:01]} 11... Bf8 {[%clk 0:02:32.3]} 12. h3 {[%clk 0:03:00.5]} 12... Bh5
{[%clk 0:02:31.8]} 13. a4 {[%clk 0:02:53.9]} 13... exd4 {[%clk 0:02:07.1]} 14.
cxd4 {[%clk 0:02:53.7]} 14... Na5 {[%clk 0:02:07.3]} 15. Bc2 {[%clk 0:02:53.3]}
15... c5 {[%clk 0:02:05.1]} 16. Bg5 {[%clk 0:02:45.8]} 16... h6 {[%clk
0:01:42.2]} 17. Bh4 {[%clk 0:02:42.7]} 17... Be7 {[%clk 0:01:42.4]} 18. e5
{[%clk 0:02:30.4]} 18... dxe5 {[%clk 0:01:35.4]} 19. dxe5 {[%clk 0:02:31.3]}
19... Nd5 {[%clk 0:01:35.6]} 20. Bxe7 {[%clk 0:02:29.6]} 20... Rxe7 {[%clk
0:01:36.5]} 21. Qe2 {[%clk 0:02:25]} 21... Nb4 {[%clk 0:01:23.3]} 22. Be4 {[%clk
0:02:24.7]} 22... Rc8 {[%clk 0:01:17.9]} 23. axb5 {[%clk 0:02:24.3]} 23... axb5
{[%clk 0:01:17.9]} 24. Qxb5 {[%clk 0:02:24]} 24... Nac6 {[%clk 0:01:03.2]} 25.
Qxc5 {[%clk 0:02:14.6]} 25... Nd3 {[%clk 0:00:54.1]} 26. Bxd3 {[%clk 0:02:02.4]}
26... Qxd3 {[%clk 0:00:55]} 27. Qd6 {[%clk 0:01:55.6]} 27... Qb5 {[%clk
0:00:47.6]} 28. Rac1 {[%clk 0:01:48.6]} 28... Rec7 {[%clk 0:00:36.5]} 29. e6
{[%clk 0:01:47.3]} 29... fxe6 {[%clk 0:00:35.2]} 30. Rc5 {[%clk 0:01:34.1]}
30... Qb7 {[%clk 0:00:33.6]} 31. Rxh5 {[%clk 0:01:32.4]} 1-0

[Event "*** SCC Grand Prix: Titled Tuesday Blitz"]
[Site "Chess.com"]
[Date "2020.07.07"]
[Round "1"]
[White "rududuyk"]
[Black "Aradej"]
[Result "0-1"]
[WhiteElo "2086"]
[BlackElo "2505"]
[TimeControl "180+1"]
[EndTime "10:05:22 PDT"]
[Termination "Aradej won by resignation"]

1. e4 {[%clk 0:02:58.4]} 1... d6 {[%clk 0:02:59]} 2. d4 {[%clk 0:02:58.2]} 2...
Nf6 {[%clk 0:02:58.1]} 3. Nc3 {[%clk 0:02:58.3]} 3... e5 {[%clk 0:02:58.6]} 4.
dxe5 {[%clk 0:02:57.3]} 4... dxe5 {[%clk 0:02:58]} 5. Qxd8+ {[%clk 0:02:57]}
5... Kxd8 {[%clk 0:02:57.4]} 6. Nf3 {[%clk 0:02:43.7]} 6... Bd6 {[%clk
0:02:56.4]} 7. Bg5 {[%clk 0:02:39]} 7... Be6 {[%clk 0:02:54.8]} 8. O-O-O {[%clk
0:02:38.4]} 8... Nd7 {[%clk 0:02:53.8]} 9. Be2 {[%clk 0:02:18.3]} 9... h6 {[%clk
0:02:51.9]} 10. Bh4 {[%clk 0:02:16.7]} 10... a6 {[%clk 0:02:46.9]} 11. a4 {[%clk
0:02:13.1]} 11... Ke7 {[%clk 0:02:42.4]} 12. Nd5+ {[%clk 0:02:07.3]} 12... Kf8
{[%clk 0:02:41.8]} 13. Nxf6 {[%clk 0:01:54]} 13... gxf6 {[%clk 0:02:41.3]} 14.
Bd3 {[%clk 0:01:48.4]} 14... Ke7 {[%clk 0:02:39.8]} 15. Rhe1 {[%clk 0:01:46.6]}
15... Rhd8 {[%clk 0:02:35.1]} 16. Bg3 {[%clk 0:01:35]} 16... Nc5 {[%clk
0:02:34.6]} 17. b3 {[%clk 0:01:31.3]} 17... c6 {[%clk 0:02:32.3]} 18. Nh4 {[%clk
0:01:30.1]} 18... b5 {[%clk 0:02:26.8]} 19. a5 {[%clk 0:01:27.6]} 19... Nxd3+
{[%clk 0:02:23.8]} 20. Rxd3 {[%clk 0:01:26.6]} 20... Bb4 {[%clk 0:02:24.3]} 21.
Red1 {[%clk 0:01:24.6]} 21... Rxd3 {[%clk 0:02:23.6]} 22. Rxd3 {[%clk
0:01:25.5]} 22... Bxa5 {[%clk 0:02:23.1]} 23. f4 {[%clk 0:01:22.5]} 23... Bc7
{[%clk 0:02:20.6]} 24. f5 {[%clk 0:01:17]} 24... Bd7 {[%clk 0:02:19.8]} 25. Bf2
{[%clk 0:01:16.2]} 25... Bd6 {[%clk 0:02:16.9]} 26. Rh3 {[%clk 0:01:11.4]} 26...
a5 {[%clk 0:02:14.2]} 27. Nf3 {[%clk 0:01:09.8]} 27... a4 {[%clk 0:02:14.5]} 28.
Rxh6 {[%clk 0:01:07.7]} 28... axb3 {[%clk 0:02:11.3]} 29. cxb3 {[%clk
0:01:08.6]} 29... Ra2 {[%clk 0:02:11.1]} 30. Bb6 {[%clk 0:01:06.9]} 30... Rxg2
{[%clk 0:02:01.1]} 31. Rh8 {[%clk 0:01:06.4]} 31... Be8 {[%clk 0:02:01.6]} 32.
h4 {[%clk 0:01:02.6]} 32... Bb4 {[%clk 0:02:01.4]} 33. h5 {[%clk 0:00:58.4]}
33... Rg3 {[%clk 0:02:00.3]} 34. h6 {[%clk 0:00:49.3]} 34... Rxf3 {[%clk
0:01:59.3]} 35. h7 {[%clk 0:00:49.3]} 35... Rh3 {[%clk 0:01:59.2]} 36. Kc2
{[%clk 0:00:24.7]} 36... c5 {[%clk 0:01:59.1]} 0-1

[Event "*** SCC Grand Prix: Titled Tuesday Blitz"]
[Site "Chess.com"]
[Date "2020.07.07"]
[Round "1"]
[White "novendrapriasmoro"]
[Black "mjray79"]
[Result "1-0"]
[WhiteElo "2633"]
[BlackElo "2308"]
[TimeControl "180+1"]
[EndTime "10:05:25 PDT"]
[Termination "novendrapriasmoro won by checkmate"]

1. e4 {[%clk 0:03:00.1]} 1... e5 {[%clk 0:02:59.3]} 2. Nf3 {[%clk 0:03:00]} 2...
Nc6 {[%clk 0:02:59.2]} 3. Bb5 {[%clk 0:03:00.1]} 3... a6 {[%clk 0:02:58.5]} 4.
Bxc6 {[%clk 0:03:00.5]} 4... dxc6 {[%clk 0:02:59.4]} 5. O-O {[%clk 0:03:01.1]}
5... Bg4 {[%clk 0:02:58.7]} 6. h3 {[%clk 0:03:01]} 6... h5 {[%clk 0:02:59.1]} 7.
d3 {[%clk 0:03:00.5]} 7... Qf6 {[%clk 0:02:59]} 8. Be3 {[%clk 0:03:00.8]} 8...
Bxf3 {[%clk 0:02:55.7]} 9. Qxf3 {[%clk 0:03:01.7]} 9... Qxf3 {[%clk 0:02:55.4]}
10. gxf3 {[%clk 0:03:02.6]} 10... f6 {[%clk 0:02:55.2]} 11. Nd2 {[%clk
0:03:02.9]} 11... g5 {[%clk 0:02:55]} 12. c3 {[%clk 0:03:00.3]} 12... Ne7 {[%clk
0:02:53.9]} 13. d4 {[%clk 0:03:00.3]} 13... Ng6 {[%clk 0:02:53.4]} 14. Rfd1
{[%clk 0:02:59.9]} 14... exd4 {[%clk 0:02:50.6]} 15. cxd4 {[%clk 0:02:59.8]}
15... O-O-O {[%clk 0:02:47.4]} 16. Nc4 {[%clk 0:02:59.8]} 16... Nh4 {[%clk
0:02:43.1]} 17. f4 {[%clk 0:02:41.1]} 17... gxf4 {[%clk 0:02:37.3]} 18. Bxf4
{[%clk 0:02:42]} 18... Nf3+ {[%clk 0:02:33.5]} 19. Kh1 {[%clk 0:02:37.4]} 19...
Nxd4 {[%clk 0:02:32]} 20. Rd3 {[%clk 0:02:35.9]} 20... Bc5 {[%clk 0:02:27.7]}
21. Rad1 {[%clk 0:02:34.4]} 21... Ne6 {[%clk 0:02:26.6]} 22. Be3 {[%clk
0:02:30.2]} 22... Bxe3 {[%clk 0:02:23.1]} 23. Nxe3 {[%clk 0:02:31.1]} 23... Rxd3
{[%clk 0:02:21.3]} 24. Rxd3 {[%clk 0:02:32]} 24... Rd8 {[%clk 0:02:20.3]} 25.
Rxd8+ {[%clk 0:02:31.1]} 25... Kxd8 {[%clk 0:02:20.4]} 26. Kg2 {[%clk
0:02:30.6]} 26... Kd7 {[%clk 0:02:15.2]} 27. Kg3 {[%clk 0:02:29.5]} 27... Kd6
{[%clk 0:02:13.6]} 28. f4 {[%clk 0:02:28.9]} 28... Nc5 {[%clk 0:02:10.7]} 29.
Kf3 {[%clk 0:02:28.4]} 29... b5 {[%clk 0:02:04.3]} 30. Nf5+ {[%clk 0:02:28]}
30... Kd7 {[%clk 0:02:02.8]} 31. Ng7 {[%clk 0:02:27.8]} 31... Nd3 {[%clk
0:01:54.4]} 32. Nxh5 {[%clk 0:02:27]} 32... Ke6 {[%clk 0:01:53.6]} 33. Ng7+
{[%clk 0:02:24]} 33... Kf7 {[%clk 0:01:51.9]} 34. Nf5 {[%clk 0:02:24.2]} 34...
Nxb2 {[%clk 0:01:50.9]} 35. h4 {[%clk 0:02:22]} 35... c5 {[%clk 0:01:50]} 36. h5
{[%clk 0:02:21.1]} 36... c4 {[%clk 0:01:47]} 37. h6 {[%clk 0:02:10.9]} 37... Kg6
{[%clk 0:01:45.5]} 38. e5 {[%clk 0:02:11]} 38... fxe5 {[%clk 0:01:06.6]} 39.
fxe5 {[%clk 0:02:11.9]} 39... Nd3 {[%clk 0:01:05.3]} 40. e6 {[%clk 0:02:03.2]}
40... Ne5+ {[%clk 0:01:01.1]} 41. Ke4 {[%clk 0:02:01.6]} 41... Kf6 {[%clk
0:00:53.5]} 42. e7 {[%clk 0:01:56.7]} 42... Kf7 {[%clk 0:00:52.4]} 43. Kxe5
{[%clk 0:01:53.3]} 43... b4 {[%clk 0:00:50]} 44. h7 {[%clk 0:01:53]} 44... b3
{[%clk 0:00:49.3]} 45. h8=Q {[%clk 0:01:53.1]} 45... b2 {[%clk 0:00:49.1]} 46.
Qg7+ {[%clk 0:01:52.3]} 46... Ke8 {[%clk 0:00:50]} 47. Ke6 {[%clk 0:01:50.7]}
47... b1=Q {[%clk 0:00:48.9]} 48. Qf8# {[%clk 0:01:51.6]} 1-0

[Event "*** SCC Grand Prix: Titled Tuesday Blitz"]
[Site "Chess.com"]
[Date "2020.07.07"]
[Round "1"]
[White "iaraldinho"]
[Black "inegrepus"]
[Result "1-0"]
[WhiteElo "2541"]
[BlackElo "2190"]
[TimeControl "180+1"]
[EndTime "10:05:26 PDT"]
[Termination "iaraldinho won by resignation"]

1. e4 {[%clk 0:03:00.9]} 1... e5 {[%clk 0:02:35.7]} 2. Nf3 {[%clk 0:03:00.7]}
2... Nc6 {[%clk 0:02:35.6]} 3. d4 {[%clk 0:03:00.4]} 3... exd4 {[%clk
0:02:35.5]} 4. Bc4 {[%clk 0:03:01.1]} 4... Nf6 {[%clk 0:02:32.3]} 5. O-O {[%clk
0:03:01.2]} 5... Nxe4 {[%clk 0:01:44.8]} 6. Re1 {[%clk 0:03:01]} 6... d5 {[%clk
0:01:41.7]} 7. Bxd5 {[%clk 0:02:58.9]} 7... Qxd5 {[%clk 0:01:37.8]} 8. Nc3
{[%clk 0:02:59.8]} 8... Qa5 {[%clk 0:01:36.7]} 9. Nxe4 {[%clk 0:02:59.2]} 9...
Be6 {[%clk 0:01:35]} 10. Bd2 {[%clk 0:02:59.2]} 10... Qb5 {[%clk 0:01:25.9]} 11.
a4 {[%clk 0:02:51.6]} 11... Qc4 {[%clk 0:01:25]} 12. b3 {[%clk 0:02:49.6]} 12...
Qd5 {[%clk 0:01:23.2]} 13. Bg5 {[%clk 0:02:43.7]} 13... Bb4 {[%clk 0:01:23]} 14.
c3 {[%clk 0:02:40.4]} 14... f5 {[%clk 0:01:22.6]} 15. cxb4 {[%clk 0:02:16.8]}
15... fxe4 {[%clk 0:01:22.5]} 16. b5 {[%clk 0:02:16.3]} 16... exf3 {[%clk
0:01:22.4]} 17. bxc6 {[%clk 0:02:16.6]} 17... Qxg5 {[%clk 0:01:15.1]} 18. Qxf3
{[%clk 0:02:15.9]} 18... Ke7 {[%clk 0:00:53.3]} 19. cxb7 {[%clk 0:02:12.8]}
19... Rab8 {[%clk 0:00:53.5]} 20. Qc6 {[%clk 0:02:11.7]} 20... Qf5 {[%clk
0:00:44.4]} 21. Qxc7+ {[%clk 0:02:01.9]} 21... Kf6 {[%clk 0:00:44.5]} 22. Rac1
{[%clk 0:02:00.2]} 22... Rhe8 {[%clk 0:00:40]} 23. Rxe6+ {[%clk 0:01:47.1]}
23... Qxe6 {[%clk 0:00:38.5]} 24. Rc6 {[%clk 0:01:46.9]} 24... Rxb7 {[%clk
0:00:34.4]} 25. Qxb7 {[%clk 0:01:38.6]} 25... d3 {[%clk 0:00:28.7]} 26. Rxe6+
{[%clk 0:01:36]} 26... Rxe6 {[%clk 0:00:28.6]} 27. Qf3+ {[%clk 0:01:36.4]} 27...
Ke7 {[%clk 0:00:26.8]} 28. Qxd3 {[%clk 0:01:36.1]} 28... Re1+ {[%clk 0:00:26.8]}
29. Qf1 {[%clk 0:01:37]} 1-0

[Event "*** SCC Grand Prix: Titled Tuesday Blitz"]
[Site "Chess.com"]
[Date "2020.07.07"]
[Round "1"]
[White "I_Hit_18K_on_BS"]
[Black "TST2014"]
[Result "0-1"]
[WhiteElo "2064"]
[BlackElo "2500"]
[TimeControl "180+1"]
[EndTime "10:05:28 PDT"]
[Termination "TST2014 won by resignation"]

1. e4 {[%clk 0:02:59.4]} 1... c5 {[%clk 0:02:57.4]} 2. Nf3 {[%clk 0:02:57.9]}
2... Nc6 {[%clk 0:02:56.9]} 3. d4 {[%clk 0:02:56.3]} 3... cxd4 {[%clk
0:02:56.7]} 4. Nxd4 {[%clk 0:02:57.2]} 4... Nf6 {[%clk 0:02:56.9]} 5. Nc3 {[%clk
0:02:56.5]} 5... d6 {[%clk 0:02:54]} 6. f3 {[%clk 0:02:51.7]} 6... e5 {[%clk
0:02:53.4]} 7. Ndb5 {[%clk 0:02:44.3]} 7... a6 {[%clk 0:02:52.2]} 8. Na3 {[%clk
0:02:44.2]} 8... b5 {[%clk 0:02:51.4]} 9. Nd5 {[%clk 0:02:44.6]} 9... Nxd5
{[%clk 0:02:48.6]} 10. Qxd5 {[%clk 0:02:43.3]} 10... Qc7 {[%clk 0:02:47]} 11.
Be3 {[%clk 0:02:39.3]} 11... Be6 {[%clk 0:02:42.4]} 12. Qd2 {[%clk 0:02:34.4]}
12... Rd8 {[%clk 0:02:25.1]} 13. O-O-O {[%clk 0:02:31]} 13... d5 {[%clk
0:02:22.2]} 14. exd5 {[%clk 0:02:07.5]} 14... Rxd5 {[%clk 0:02:10.3]} 15. Qe1
{[%clk 0:02:03.3]} 15... Bb4 {[%clk 0:01:54.1]} 16. c3 {[%clk 0:01:52.6]} 16...
Bxa3 {[%clk 0:01:40.1]} 17. bxa3 {[%clk 0:01:53.5]} 17... O-O {[%clk 0:01:36]}
18. Rxd5 {[%clk 0:01:52.4]} 18... Bxd5 {[%clk 0:01:35.8]} 19. Qd2 {[%clk
0:01:52.8]} 19... Rd8 {[%clk 0:01:32.2]} 20. Bd3 {[%clk 0:01:51.3]} 20... Bc4
{[%clk 0:01:29.1]} 21. Bc5 {[%clk 0:01:27.9]} 21... Rxd3 {[%clk 0:01:23.8]} 22.
Qc2 {[%clk 0:01:24.3]} 22... Qd7 {[%clk 0:01:11.5]} 23. Rd1 {[%clk 0:01:18]}
23... Rxd1+ {[%clk 0:01:08.1]} 24. Qxd1 {[%clk 0:01:18.9]} 24... Qxd1+ {[%clk
0:01:07.2]} 25. Kxd1 {[%clk 0:01:19.8]} 25... Bxa2 {[%clk 0:01:07.6]} 26. Kc2
{[%clk 0:01:17.8]} 26... f5 {[%clk 0:01:05.3]} 27. Kb2 {[%clk 0:01:13.8]} 27...
Bc4 {[%clk 0:01:04.5]} 28. h3 {[%clk 0:01:09]} 28... Bf1 {[%clk 0:00:58.7]} 29.
g4 {[%clk 0:01:04.9]} 29... f4 {[%clk 0:00:53.5]} 30. h4 {[%clk 0:01:03.5]}
30... Be2 {[%clk 0:00:53.2]} 0-1